bitfinex/quotes_SOLUSD_20250907
["timestamp","ask_amount","ask_price","bid_price","bid_amount"]
[1757285309166,0.06,206.56,206.55,17.06583887]
[1757285310060,0.06,206.56,206.55,8.42267661]
[1757285310263,0.06,206.56,206.55,12.22439613]
[1757285310849,0.06,206.56,206.55,9.36150805]
[1757285311357,0.06,206.56,206.55,17.06547875]
[1757285313046,0.06,206.56,206.55,9.36150805]
[1757285313252,0.06,206.56,206.55,14.20295079]
[1757285314385,0.06,206.56,206.55,17.06505874]
[1757285315777,0.06,206.56,206.55,12.223616]
[1757285316478,0.06,206.56,206.55,17.06505874]
[1757285316655,0.06,206.56,206.55,14.20295079]
[1757285316969,0.06,206.56,206.55,4.52171952]
[1757285317171,0.06,206.56,206.55,9.36316226]
[1757285317372,0.06,206.56,206.55,4.52171952]
[1757285317579,0.06,206.56,206.55,3.80171952]
[1757285317774,0.06,206.56,206.55,4.52171952]
[1757285317964,0.06,206.56,206.55,7.34585105]
[1757285318368,0.06,206.56,206.55,20.5083035]
[1757285318771,0.06,206.56,206.55,5.97447602]
[1757285319879,0.06,206.56,206.55,8.38557427]
[1757285320181,0.06,206.56,206.55,10.81591876]
[1757285320964,0.06,206.56,206.55,5.25447602]
[1757285321164,0.06,206.56,206.55,10.09591876]
[1757285321381,0.06,206.56,206.55,10.81591876]
[1757285321559,0.06,206.56,206.55,12.75366854]
[1757285322171,0.06,206.56,206.55,41.96366854]
[1757285322370,0.06,206.59,206.58,13.59559401]
[1757285322558,1e-08,206.61,206.6,68.80559401]
[1757285322772,0.68,206.7,206.6,84.26547509]
[1757285323072,4.83721931,206.74,206.62,29.21]
[1757285323265,0.68,206.72,206.7,2.43034449]
[1757285323458,0.68,206.71,206.7,2.43034449]
[1757285323854,5.51784196,206.71,206.68,2.43034449]
[1757285324077,0.68,206.7,206.68,2.43034449]
[1757285324285,0.68,206.69,206.68,2.43034449]
[1757285325480,2.43034449,206.74,206.68,2.43034449]
[1757285325697,38.88,206.7,206.68,2.43034449]
[1757285325901,39.56,206.7,206.68,2.43034449]
[1757285326198,0.68,206.7,206.68,2.43034449]
[1757285326378,39.52,206.7,206.68,2.43034449]
[1757285326688,39.52,206.69,206.68,2.43034449]
[1757285326874,39.52,206.69,206.56,0.72]
[1757285326875,41.93034449,206.69,206.56,0.72]
[1757285327073,41.93034449,206.69,206.53,0.72]
[1757285327074,2.43034449,206.63,206.53,0.72]
[1757285327295,7.27038127,206.61,206.55,4.83930761]
[1757285327494,39.58,206.6,206.55,7.2696521]
[1757285327788,0.68,206.59,206.56,2.43034449]
[1757285328180,38.9,206.6,206.56,2.43034449]
[1757285328383,0.68,206.58,206.55,2.43034449]
[1757285328579,0.68,206.57,206.55,2.43034449]
[1757285328897,0.68,206.56,206.52,5.56192904]
[1757285329085,2.43034449,206.53,206.51,0.03]
[1757285329277,46.23249052,206.52,206.51,0.03]
[1757285329598,46.91249052,206.52,206.51,0.03]
[1757285330095,60.50808453,206.52,206.51,0.03]
[1757285330583,46.91249052,206.52,206.51,0.03]
[1757285330767,7.95249052,206.52,206.51,0.03]
[1757285330974,46.91249052,206.52,206.51,0.03]
[1757285333193,58.07774004,206.52,206.51,0.03]
[1757285333386,60.50808453,206.52,206.51,0.03]
[1757285334309,64.16121022,206.52,206.51,0.03]
[1757285334605,25.20121022,206.52,206.51,0.03]
[1757285334780,11.60561621,206.52,206.51,0.03]
[1757285334973,38.98,206.52,206.51,0.03]
[1757285335380,10.92531459,206.54,206.51,0.03]
[1757285335578,4.84184441,206.54,206.51,0.03]
[1757285335787,38.98,206.53,206.51,0.03]
[1757285336003,11.60531459,206.54,206.51,0.03]
[1757285336205,38.98,206.53,206.51,0.03]
[1757285336408,11.60531459,206.54,206.51,0.03]
[1757285336615,38.98,206.52,206.51,0.03]
[1757285336799,11.60531459,206.54,206.51,0.03]
[1757285337116,38.96,206.53,206.51,0.03]
[1757285337483,38.96,206.52,206.51,0.03]
[1757285337987,4.84167715,206.54,206.51,0.03]
[1757285338309,38.94,206.53,206.51,0.03]
[1757285338720,4.84167715,206.54,206.51,0.03]
[1757285338899,38.92,206.53,206.51,0.03]
[1757285339496,4.84167715,206.54,206.51,0.03]
[1757285339701,38.92,206.53,206.51,0.03]
[1757285340015,38.92,206.52,206.51,0.03]
[1757285340209,4.84167715,206.54,206.51,0.03]
[1757285340896,14.27559401,206.61,206.53,6.08347018]
[1757285341103,6.08347018,206.56,206.51,0.03]
[1757285341292,38.9,206.55,206.51,0.03]
[1757285341616,38.9,206.54,206.51,0.75]
[1757285342209,43.74176378,206.54,206.51,0.75]
[1757285343297,38.92,206.53,206.51,0.75]
[1757285343496,38.92,206.53,206.51,0.03]
[1757285343997,6.08347018,206.54,206.51,0.03]
[1757285344196,38.88,206.52,206.51,0.03]
[1757285345092,18.22135414,206.69,206.58,26.0]
[1757285345415,17.54135414,206.69,206.68,6.08347018]
[1757285345717,56.66135414,206.69,206.68,6.76347018]
[1757285346419,17.54135414,206.69,206.68,6.76347018]
[1757285347817,17.54135414,206.69,206.68,0.68]
[1757285348007,17.54135414,206.69,206.68,6.76347018]
[1757285348518,17.54135414,206.69,206.68,5.51839752]
[1757285348829,0.06,206.7,206.68,43.60128451]
[1757285349000,0.06,206.7,206.69,10.03670333]
[1757285349322,0.06,206.7,206.69,6.76347018]
[1757285350107,0.06,206.7,206.69,11.60163361]
[1757285351425,0.06,206.7,206.69,13.53797635]
[1757285352111,0.06,206.7,206.69,40.81163361]
[1757285352702,0.06,206.7,206.69,0.68]
[1757285352905,0.06,206.7,206.69,6.76347018]
[1757285354014,0.06,206.7,206.69,11.60163361]
[1757285354730,0.06,206.7,206.69,6.76347018]
[1757285355032,0.06,206.7,206.69,11.60163361]
[1757285355549,0.06,206.7,206.69,6.76347018]
[1757285356106,0.06,206.7,206.69,11.60163361]
[1757285358127,0.06,206.73,206.7,26.0]
[1757285358309,0.06,206.73,206.72,32.08347018]
[1757285358624,0.0419013,206.77,206.72,32.08347018]
[1757285358625,0.0419013,206.77,206.72,66.13093148]
[1757285358808,0.0419013,206.77,206.76,6.08347018]
[1757285359004,0.0419013,206.77,206.73,1.16372273]
[1757285359325,0.0419013,206.77,206.76,12.16694036]
[1757285359507,3.67820382,206.84,206.76,12.16694036]
[1757285359710,3.67820382,206.84,206.77,0.68]
[1757285360630,2.99820382,206.84,206.83,6.08347018]
[1757285362305,0.49820382,206.84,206.83,6.08347018]
[1757285362928,5.33285862,206.84,206.83,6.08347018]
[1757285363506,0.49820382,206.84,206.83,6.08347018]
[1757285364125,0.49820382,206.84,206.79,4.83561498]
[1757285364322,0.49820382,206.84,206.83,6.08347018]
[1757285364706,0.49820382,206.84,206.8,0.68]
[1757285365025,0.49820382,206.84,206.83,6.08347018]
[1757285365327,23.21081014,206.98,206.91,43.82]
[1757285365511,6.76347018,206.97,206.87,0.68]
[1757285365703,0.68,206.97,206.93,6.08347018]
[1757285365906,22.53081014,206.98,206.96,6.08347018]
[1757285366228,22.53081014,206.98,206.96,0.68]
[1757285366414,22.53081014,206.98,206.97,6.76347018]
[1757285366613,22.53081014,206.98,206.97,6.08347018]
[1757285366915,22.53081014,206.98,206.97,10.91508828]
[1757285367219,22.53081014,206.98,206.97,5.5116181]
[1757285367406,22.53081014,206.98,206.97,11.59508828]
[1757285368225,22.53081014,206.98,206.97,5.5116181]
[1757285368426,22.53081014,206.98,206.97,11.59508828]
[1757285368805,22.53081014,206.98,206.96,34.04182203]
[1757285369016,22.53081014,206.98,206.97,6.76347018]
[1757285369336,22.53081014,206.98,206.97,6.08347018]
[1757285369730,22.53081014,206.98,206.97,0.68]
[1757285370032,22.53081014,206.98,206.97,6.76347018]
[1757285370238,22.53081014,206.98,206.97,61.97347018]
[1757285370729,1.92560254,207.18,207.0,55.21]
[1757285370938,6.08347018,207.09,207.04,6.08347018]
[1757285371228,0.15180482,207.08,207.03,6.08347018]
[1757285371616,0.15180482,207.08,207.04,6.08347018]
[1757285372514,0.15180482,207.08,207.0,40.50080963]
[1757285372515,4.98093172,207.08,207.0,6.08347018]
[1757285372727,6.08347018,207.07,207.01,6.08347018]
[1757285372922,6.08347018,207.07,206.96,6.08347018]
[1757285373125,6.08347018,207.05,207.0,6.08347018]
[1757285373332,6.235275,207.06,207.01,6.08347018]
[1757285373640,6.08347018,207.05,207.0,6.08347018]
[1757285373823,4.98145844,207.06,207.0,6.08347018]
[1757285374317,0.15180482,207.06,207.05,6.08347018]
[1757285377125,0.15180482,207.06,206.99,69.71080963]
[1757285377330,0.15180482,207.06,207.04,6.08347018]
[1757285377624,0.15180482,207.06,206.99,45.33189366]
[1757285377833,0.15180482,207.06,207.0,6.08347018]
[1757285377834,6.235275,207.06,207.0,6.08347018]
[1757285378216,6.08347018,207.05,207.0,6.08347018]
[1757285378424,13.99606013,207.06,207.0,9.01472712]
[1757285378942,13.99606013,207.06,207.01,9.01472712]
[1757285379447,4.98133301,207.06,207.01,9.01472712]
[1757285379643,13.99606013,207.06,207.01,9.01472712]
[1757285379850,13.99606013,207.06,206.95,69.71291267]
[1757285379851,13.99606013,207.06,206.97,4.83159598]
[1757285380022,9.01472712,207.05,206.95,43.71291267]
[1757285380224,9.01472712,207.03,206.97,9.01472712]
[1757285380642,9.01472712,207.03,206.98,9.01472712]
[1757285381232,9.01472712,207.04,207.0,0.03]
[1757285381650,9.01472712,207.05,207.0,0.03]
[1757285381840,42.02,207.06,207.01,9.01472712]
[1757285382452,51.03472712,207.06,207.0,9.04472712]
[1757285382625,12.07093903,207.11,207.0,9.04472712]
[1757285382821,9.01472712,207.07,207.01,9.01472712]
[1757285383543,4.82951801,207.06,207.01,9.01472712]
[1757285383742,13.84424513,207.06,207.0,9.04472712]
[1757285384952,0.08349265,207.05,207.0,9.04472712]
[1757285385332,9.01472712,207.02,207.0,0.03]
[1757285385526,0.08349265,207.05,207.0,0.03]
[1757285385527,13.84541162,207.01,207.0,0.03]
[1757285385729,46.7506845,207.01,207.0,0.03]
[1757285385936,0.06,207.18,207.0,9.72472712]
[1757285386261,0.08349265,207.04,207.0,0.71]
[1757285386441,0.08349265,207.04,207.03,9.01472712]
[1757285387038,0.08349265,207.04,207.01,29.01]
[1757285387237,0.08349265,207.04,207.03,39.84494496]
[1757285388761,0.08349265,207.04,207.03,9.01472712]
[1757285389639,4.91347719,207.04,207.0,0.03]
[1757285389848,4.91347719,207.04,207.03,9.01472712]
[1757285390561,47.23348049,207.04,207.0,9.04472712]
[1757285390941,59.30844185,207.04,207.0,0.03]
[1757285391146,16.98844185,207.04,207.0,0.03]
[1757285391468,42.36,207.03,207.0,9.04472712]
[1757285391847,16.98844185,207.04,207.0,9.04472712]
[1757285392048,42.34,207.02,207.0,0.03]
[1757285392243,9.01472712,207.01,207.0,0.03]
[1757285392444,23.32032113,207.01,207.0,0.03]
[1757285393059,65.64032113,207.01,207.0,0.03]
[1757285393245,70.47100563,207.01,207.0,0.03]
[1757285394370,28.15100563,207.01,207.0,0.03]
[1757285394747,70.39100563,207.01,207.0,0.03]
[1757285395158,60.66627851,207.01,207.0,0.03]
[1757285395463,69.66100563,207.01,207.0,0.03]
[1757285395761,70.37100563,207.01,207.0,0.03]
[1757285395975,0.08349265,207.04,207.0,0.03]
[1757285396459,0.08349265,207.04,207.01,9.01472712]
[1757285396764,0.08349265,207.04,207.0,0.03]
[1757285396964,0.08349265,207.04,207.01,9.01472712]
[1757285397663,0.08349265,207.04,207.03,9.01472712]
[1757285400677,0.08349265,207.04,207.03,12.456228]
[1757285400881,0.14349265,207.04,207.03,12.456228]
[1757285401584,8.32,207.16,207.13,9.01472712]
[1757285401957,0.06,207.18,207.1,0.68]
[1757285402164,0.06,207.18,207.15,9.01472712]
[1757285403096,0.06,207.18,207.17,9.01472712]
[1757285403665,0.06,207.18,207.17,9.69472712]
[1757285404275,0.06,207.18,207.17,9.01472712]
[1757285404508,0.06,207.18,207.07,0.68]
[1757285404665,9.01472712,207.16,207.11,9.01472712]
[1757285404977,42.74,207.17,207.12,9.01472712]
[1757285405174,42.74,207.17,207.07,0.68]
[1757285405392,42.74,207.17,207.13,9.01472712]
[1757285405564,0.06,207.18,207.07,0.68]
[1757285405756,0.06,207.18,207.08,3.45962784]
[1757285405971,4.8269537,207.17,207.08,3.45962784]
[1757285406289,42.76,207.18,207.13,9.01472712]
[1757285406493,47.58678027,207.18,207.13,9.01472712]
[1757285406670,4.88678027,207.18,207.13,9.01472712]
[1757285407186,47.56678027,207.18,207.13,9.01472712]
[1757285407377,56.58150739,207.18,207.12,9.01472712]
[1757285407889,56.58150739,207.18,207.02,26.57182909]
[1757285407890,9.01472712,207.13,207.02,29.7]
[1757285408192,9.01472712,207.12,207.07,9.01472712]
[1757285408375,9.01472712,207.13,207.07,9.01472712]
[1757285408882,9.01472712,207.13,207.08,9.01472712]
[1757285409194,0.06,207.18,207.12,9.01472712]
[1757285409358,0.06,207.18,207.17,9.01472712]
[1757285409672,0.06,207.18,207.17,2.77869038]
[1757285409981,0.06,207.18,207.17,9.01472712]
[1757285410182,0.06,207.18,207.17,11.79720388]
[1757285410485,0.06,207.18,207.13,9.01472712]
[1757285410685,0.06,207.18,207.14,2.78238698]
[1757285410875,0.06,207.18,207.11,0.69]
[1757285410876,0.06,207.18,207.09,26.69]
[1757285411078,9.01472712,207.16,207.1,11.79790403]
[1757285411275,9.71472712,207.17,207.11,9.01472712]
[1757285411463,0.06,207.18,207.13,9.01472712]
[1757285411863,0.06,207.18,207.13,9.70472712]
[1757285411864,4.88672072,207.18,207.13,9.70472712]
[1757285412076,9.01472712,207.17,207.12,9.01472712]
[1757285412400,9.01472712,207.17,207.13,2.78353472]
[1757285412586,0.06,207.18,207.16,9.01472712]
[1757285413068,0.06,207.18,207.17,9.01472712]
[1757285413273,0.06,207.18,207.16,9.01472712]
[1757285413672,0.06,207.18,207.14,0.69]
[1757285413891,0.06,207.18,207.12,0.69]
[1757285414187,0.06,207.18,207.14,9.01472712]
[1757285414578,0.06,207.18,207.16,9.01472712]
[1757285414986,0.06,207.18,207.09,30.82866589]
[1757285414987,0.06,207.18,207.17,9.70472712]
[1757285415196,6.4606042,207.24,207.17,12.48363261]
[1757285415390,6.4606042,207.24,207.16,29.01]
[1757285415391,6.4606042,207.24,207.23,9.01472712]
[1757285415590,6.4606042,207.24,207.23,9.70472712]
[1757285416768,6.4606042,207.24,207.23,9.01472712]
[1757285416966,6.4606042,207.24,207.22,9.01472712]
[1757285417177,6.4606042,207.24,207.22,0.69]
[1757285417384,6.4606042,207.24,207.22,9.70472712]
[1757285417584,6.4606042,207.24,207.23,9.01472712]
[1757285417963,6.4606042,207.24,207.21,9.01472712]
[1757285418169,6.4606042,207.24,207.22,9.01472712]
[1757285418364,6.4606042,207.24,207.19,0.69]
[1757285418365,6.4606042,207.24,207.23,9.70472712]
[1757285418992,5.7406042,207.24,207.23,9.70472712]
[1757285419193,5.7406042,207.24,207.23,0.69]
[1757285419374,5.7406042,207.24,207.23,35.70472712]
[1757285420093,5.8006042,207.24,207.23,67.48320096]
[1757285420292,5.8006042,207.24,207.23,112.20028326]
[1757285420601,5.01145838,207.33,207.23,141.51019548]
[1757285420813,5.01145838,207.33,207.32,64.02472712]
[1757285421014,5.01145838,207.33,207.32,64.71472712]
[1757285421178,22.08988418,207.48,207.32,64.71472712]
[1757285421179,0.7,207.46,207.35,26.0]
[1757285421377,0.7,207.46,207.37,9.01472712]
[1757285421598,0.7,207.49,207.37,38.02472712]
[1757285421771,5.519514,207.49,207.37,38.02472712]
[1757285421976,0.7,207.49,207.37,38.71472712]
[1757285422290,0.7,207.47,207.37,86.25702542]
[1757285422489,0.7,207.5,207.37,86.73925525]
[1757285422692,0.7,207.5,207.37,89.48792576]
[1757285423097,0.7,207.55,207.44,26.0]
[1757285423405,9.71472712,207.55,207.5,9.01472712]
[1757285423576,0.7,207.55,207.52,9.01472712]
[1757285423777,0.7,207.54,207.45,26.0]
[1757285424099,9.01472712,207.52,207.45,26.0]
[1757285424413,4.81881264,207.52,207.48,9.01472712]
[1757285424581,0.7,207.51,207.47,9.01472712]
[1757285424782,4.81881264,207.52,207.47,9.01472712]
[1757285424783,0.7,207.5,207.47,9.01472712]
[1757285425006,0.7,207.56,207.48,0.69]
[1757285425185,0.7,207.56,207.44,26.0]
[1757285425386,9.01472712,207.54,207.49,9.01472712]
[1757285425587,0.7,207.54,207.49,9.01472712]
[1757285425884,0.7,207.53,207.49,9.01472712]
[1757285426086,9.01472712,207.51,207.46,9.01472712]
[1757285426315,13.8338696,207.51,207.46,9.70472712]
[1757285426683,9.01472712,207.51,207.46,9.70472712]
[1757285427013,4.81882044,207.52,207.46,9.01472712]
[1757285427201,9.01472712,207.52,207.47,0.69]
[1757285427381,9.01472712,207.49,207.44,64.02472712]
[1757285427581,9.01472712,207.49,207.44,64.71472712]
[1757285427884,9.01472712,207.5,207.44,55.01]
[1757285428085,4.81860991,207.53,207.45,9.70472712]
[1757285428303,9.01472712,207.5,207.45,9.70472712]
[1757285428686,13.83400978,207.5,207.45,0.69]
[1757285429103,9.01472712,207.48,207.42,51.73472712]
[1757285429406,9.01472712,207.47,207.42,51.73472712]
[1757285429703,9.01472712,207.48,207.42,52.42472712]
[1757285429902,9.01472712,207.47,207.42,43.41]
[1757285430585,9.01472712,207.47,207.42,0.69]
[1757285431213,13.83471947,207.47,207.42,0.69]
[1757285431392,13.83471947,207.47,207.33,29.01]
[1757285431393,9.01472712,207.43,207.33,29.01]
[1757285431582,4.81999235,207.47,207.31,4.82346665]
[1757285431583,16.86992728,207.47,207.31,0.69]
[1757285431788,9.01472712,207.38,207.32,9.01472712]
[1757285432220,9.01472712,207.4,207.35,9.01472712]
[1757285432504,4.81999235,207.47,207.37,26.0]
[1757285432686,9.01472712,207.44,207.39,9.01472712]
[1757285432887,9.01472712,207.44,207.39,9.70472712]
[1757285433186,9.01472712,207.4,207.36,0.69]
[1757285433404,9.01472712,207.39,207.34,9.01472712]
[1757285433579,9.01472712,207.39,207.34,9.70472712]
[1757285433785,9.01472712,207.39,207.34,0.69]
[1757285433984,16.86992728,207.47,207.26,9.01472712]
[1757285433985,9.01472712,207.35,207.26,9.01472712]
[1757285434308,9.01472712,207.27,207.26,9.01472712]
[1757285434489,9.01472712,207.27,207.2,0.69]
[1757285434688,9.01472712,207.21,207.17,0.69]
[1757285434886,9.01472712,207.2,207.15,29.01]
[1757285435082,9.01472712,207.2,207.16,0.69]
[1757285435294,9.01472712,207.2,207.17,0.7]
[1757285436210,9.01472712,207.19,207.17,0.7]
[1757285436403,0.71,207.3,207.18,9.71472712]
[1757285436713,9.01472712,207.24,207.19,14.54116525]
[1757285437005,9.01472712,207.23,207.2,26.7]
[1757285437209,9.01472712,207.24,207.2,26.7]
[1757285437507,9.01472712,207.24,207.2,0.7]
[1757285437809,9.01472712,207.23,207.19,26.0]
[1757285438004,9.01472712,207.24,207.2,29.74]
[1757285438209,9.01472712,207.24,207.21,0.7]
[1757285438401,9.01472712,207.23,207.2,29.04]
[1757285438601,22.85547615,207.21,207.2,0.03]
[1757285439005,23.56547615,207.21,207.2,0.03]
[1757285439408,14.55074903,207.21,207.2,0.03]
[1757285439590,57.63074903,207.21,207.2,0.03]
[1757285439987,43.08,207.23,207.2,0.03]
[1757285440288,6.0420735,207.21,207.2,0.03]
[1757285440710,11.57809541,207.21,207.2,0.03]
[1757285441906,0.71,207.21,207.2,0.03]
[1757285442214,6.0420735,207.21,207.2,0.03]
[1757285444803,6.0420735,207.22,207.2,0.03]
[1757285445009,6.0420735,207.21,207.2,0.03]
[1757285445919,6.7520735,207.21,207.2,0.03]
[1757285446215,6.7520735,207.21,207.05,6.7420735]
[1757285446397,6.0420735,207.11,207.06,2.7191295]
[1757285446596,6.0420735,207.1,207.08,26.0]
[1757285446814,6.0420735,207.09,207.02,0.7]
[1757285447113,6.0420735,207.07,207.02,3.42081797]
[1757285447297,6.0420735,207.06,207.02,3.42081797]
[1757285447497,6.0420735,207.06,207.02,0.7]
[1757285448005,0.71,207.13,207.04,0.7]
[1757285448212,6.0420735,207.08,207.04,0.7]
[1757285448801,6.0420735,207.08,207.04,5.52987021]
[1757285449298,6.0420735,207.05,207.03,0.03]
[1757285449499,6.0420735,207.04,207.03,0.03]
[1757285449821,0.71,207.1,207.03,0.03]
[1757285449995,6.0420735,207.1,207.05,6.0420735]
[1757285450195,6.0420735,207.11,207.06,0.7]
[1757285450416,6.0420735,207.12,207.06,6.7420735]
[1757285450801,6.0420735,207.12,207.03,42.93576244]
[1757285450802,6.0420735,207.08,207.03,0.03]
[1757285451103,6.0420735,207.04,207.03,0.03]
[1757285451311,6.7520735,207.04,207.03,0.03]
[1757285451997,0.71,207.09,207.03,0.03]
[1757285452198,6.0420735,207.04,207.03,0.03]
[1757285453123,0.71,207.07,207.03,0.03]
[1757285453299,6.0420735,207.04,207.03,0.03]
[1757285453500,6.0420735,207.12,207.03,0.03]
[1757285453501,6.0420735,207.05,207.03,0.03]
[1757285454324,6.7520735,207.04,207.03,0.03]
[1757285455027,11.58205804,207.04,207.03,0.03]
[1757285456401,68.03765205,207.04,207.03,0.03]
[1757285456618,80.11261341,207.04,207.0,0.03]
[1757285456930,6.0420735,207.01,207.0,0.03]
[1757285457104,10.872758,207.01,207.0,0.03]
[1757285457300,11.582758,207.01,207.0,0.03]
[1757285457501,6.7520735,207.01,207.0,0.03]
[1757285457708,49.5720735,207.01,207.0,0.03]
[1757285457912,54.402758,207.01,207.0,0.03]
[1757285458312,11.582758,207.01,207.0,0.03]
[1757285458509,25.17835201,207.01,207.0,0.03]
[1757285459010,54.462758,207.01,207.0,0.03]
[1757285459219,13.59559401,207.0,206.99,0.1]
[1757285459426,25.67974101,207.0,206.99,0.1]
[1757285459628,26.38974101,207.0,206.99,0.1]
[1757285460220,69.26974101,207.0,206.98,0.03]
[1757285460522,19.63766751,206.99,206.95,0.03]
[1757285460941,54.42345817,206.98,206.95,0.03]
[1757285461513,11.58345817,206.98,206.95,0.03]
[1757285461725,54.40345817,206.98,206.95,0.03]
[1757285462016,11.58345817,206.98,206.95,0.03]
[1757285462249,54.36345817,206.98,206.95,0.03]
[1757285462420,11.58345817,206.98,206.95,0.03]
[1757285462930,5.54138467,206.98,206.95,0.03]
[1757285463113,54.32345817,206.98,206.95,0.03]
[1757285463615,13.59559401,206.97,206.83,0.7]
[1757285463821,6.0420735,206.84,206.8,0.7]
[1757285464039,6.0420735,206.84,206.81,4.83534257]
[1757285464040,6.0420735,206.83,206.81,4.83534257]
[1757285464344,6.0420735,206.83,206.79,26.01725509]
[1757285464572,6.0420735,206.83,206.79,0.1]
[1757285464845,42.74,206.83,206.82,5.63506664]
[1757285465715,0.66,206.94,206.82,11.67714014]
[1757285465921,6.0420735,206.88,206.83,6.7620735]
[1757285466121,42.68,206.87,206.84,6.7620735]
[1757285466338,42.68,206.87,206.85,0.72]
[1757285466634,42.68,206.87,206.86,0.72]
[1757285466837,42.68,206.87,206.86,5.55418737]
[1757285467837,42.68,206.87,206.86,4.83418737]
[1757285468345,48.7220735,206.87,206.83,5.55475304]
[1757285468551,6.0420735,206.87,206.83,5.55475304]
[1757285468734,42.68,206.86,206.83,5.55475304]
[1757285470139,0.66,206.93,206.84,6.7620735]
[1757285470349,6.0420735,206.89,206.84,6.7620735]
[1757285470536,42.54,206.88,206.85,0.72]
[1757285470856,42.54,206.87,206.85,0.72]
[1757285471563,48.5820735,206.87,206.83,4.83475304]
[1757285471731,6.0420735,206.86,206.83,4.83475304]
[1757285471926,48.5820735,206.87,206.83,5.55475304]
[1757285472328,48.5820735,206.87,206.84,0.72]
[1757285472939,6.0420735,206.85,206.82,0.1]
[1757285473147,6.0420735,206.83,206.82,0.1]
[1757285473736,48.4820735,206.84,206.82,0.1]
[1757285474335,48.4820735,206.84,206.82,4.93511359]
[1757285474750,48.4820735,206.84,206.82,0.1]
[1757285474951,42.44,206.84,206.82,0.1]
[1757285475152,42.44,206.84,206.82,4.93508596]
[1757285476636,0.66,206.91,206.83,6.7620735]
[1757285476836,42.3,206.9,206.87,6.0420735]
[1757285477137,42.3,206.9,206.86,6.0420735]
[1757285477750,42.3,206.9,206.87,4.83395369]
[1757285478434,42.3,206.9,206.86,6.0420735]
[1757285478634,49.0020735,206.9,206.85,4.83424205]
[1757285478835,42.96,206.9,206.86,6.0420735]
[1757285479044,42.3,206.9,206.86,6.0420735]
[1757285479445,42.2,206.89,206.87,6.0420735]
[1757285479643,42.2,206.89,206.86,6.0420735]
[1757285480560,42.2,206.89,206.87,4.83395369]
[1757285480739,0.66,206.92,206.87,4.83395369]
[1757285480942,0.66,206.91,206.87,4.83395369]
[1757285481152,42.78,206.9,206.87,4.83395369]
[1757285482754,42.78,206.9,206.83,0.03]
[1757285482755,48.1620735,206.9,206.83,0.03]
[1757285482967,6.7020735,206.89,206.84,6.0420735]
[1757285483144,42.12,206.9,206.86,6.0420735]
[1757285483331,42.78,206.9,206.86,6.0420735]
[1757285483537,42.04,206.89,206.86,6.0420735]
[1757285483934,6.7020735,206.93,206.87,6.0420735]
[1757285484143,48.0620735,206.92,206.87,6.0420735]
[1757285484543,0.66,206.91,206.87,6.0420735]
[1757285484865,48.0620735,206.92,206.88,4.83372003]
[1757285485067,48.7220735,206.92,206.88,4.83372003]
[1757285486053,6.7020735,206.91,206.87,4.83395027]
[1757285486253,6.7020735,206.9,206.86,4.83414033]
[1757285486560,0.66,206.89,206.87,2.7444496]
[1757285486772,42.02,206.92,206.86,4.83399469]
[1757285486773,41.94,206.88,206.86,4.83399469]
[1757285486942,6.7020735,206.87,206.83,0.03]
[1757285487144,6.0420735,206.84,206.83,0.03]
[1757285487441,47.9820735,206.84,206.83,2.77627993]
[1757285487771,48.6420735,206.84,206.83,0.03]
[1757285489867,6.7020735,206.84,206.83,0.03]
[1757285490077,48.5620735,206.84,206.83,0.03]
[1757285490259,47.9020735,206.84,206.83,2.78733019]
[1757285490460,47.9020735,206.84,206.83,0.03]
[1757285490978,41.8,206.84,206.83,3.50665179]
[1757285491276,41.8,206.84,206.83,2.78665179]
[1757285491870,0.66,206.95,206.86,26.0]
[1757285492082,0.06,206.99,206.86,26.0]
[1757285492083,11.8020735,206.99,206.93,6.0420735]
[1757285492278,6.0420735,206.98,206.94,2.75597588]
[1757285492464,6.7020735,206.98,206.92,6.0420735]